[Event "41st BAN National Women Chess-ch 2022"]
[Site "Dhaka"]
[Date "2022.11.21"]
[Round "5.1"]
[White "Wadifa, Ahmed"]
[Black "Khan, Nazrana"]
[Result "1/2-1/2"]
[ECO "B43"]
[WhiteElo "1656"]
[BlackElo "1908"]
[Annotator "TA"]
[PlyCount "76"]
[EventDate "2022.11.17"]
[EventCountry "BAN"]
[SourceTitle "playchess.com"]
[Source "ChessBase"]
[SourceQuality "1"]
[TimeControl "40/5400+30:1800+30"]

{[%evp 18,76,25,14,11,16,17,18,70,68,64,64,68,64,75,67,77,63,63,66,135,128,137,74,75,4,0,-26,49,-100,-100,-131,-147,-286,-268,-296,8,26,38,39,39,41,29,0,0,0,0,0,0,0,23,7,8,0,0,0,8,0,0,0,27]} 1. e4 {[%emt 0:01:25]} c5 {[%emt 0:00:07]} 2. Nf3 {[%emt 0:00:05]} e6 {[%emt 0:00:08]} 3. d4 {[%emt 0:00:03]} cxd4 {[%emt 0:00:21]} 4. Nxd4 {[%emt 0:00:08]} a6 {[%emt 0:00:14]} 5. Nc3 {[%emt 0:00:09]} Qc7 {[%emt 0:00:31]} 6. Bd3 {[%emt 0:00:12]} Nf6 {[%emt 0:00:41]} 7. O-O {[%emt 0:00:13]} Nc6 {[%emt 0:01:07]} 8. Nxc6 {[%emt 0:00:18]} dxc6 {[%emt 0:00:22]} 9. f4 {[%emt 0:04:15]} e5 {[%emt 0:01:35]} 10. Kh1 {[%emt 0:05:52]} Bd6 $1 {[%emt 0:06:21][%cal Re5f4] 10...Bd6 is better than 10...Bc5. B43: Sicilian: Kan Variation: 5 Nc3.} 11. f5 {[%emt 0:08:25]} b5 {[%emt 0:05:08]} 12. a4 {[%emt 0:00:13][%cal Ra4b5]} b4 {[%emt 0:05:53]} (12... Bb7 $11) 13. Nb1 $1 $14 {[%emt 0:03:28][%cal Bc3b1,Bb1d2,Bd2c4][%mdl 32]} Bb7 {[%emt 0:01:56]} 14. Nd2 {[%emt 0:00:40]} c5 {[%emt 0:08:31]} 15. Nc4 {[%emt 0:00:41]} Rd8 {[%emt 0:05:19] [#]} (15... Bxe4 $2 16. Bxe4 Nxe4 17. Qf3 $18) 16. Qf3 $146 {[%emt 0:03:15]} ({Predecessor:} 16. Qe2 O-O 17. Bg5 Be7 18. a5 Ne8 19. Be3 Nf6 20. Nb6 Bxe4 21. Bxa6 h5 22. Bf2 {½-½ (49) Baroin,B (2336)-Salati,P (2385) ICCF email 2008}) 16... h6 {[%emt 0:08:58]} 17. Bd2 {[%emt 0:05:30]} O-O {[%emt 0:02:38]} 18. Rae1 {[%emt 0:01:49]} Kh7 {[%emt 0:04:46]} (18... Rfe8 $14) 19. g4 $16 {[%emt 0:02:31]} Rh8 {[%emt 0:05:25]} 20. Rg1 {[%emt 0:05:40]} ({Much worse is} 20. g5 $6 hxg5 21. Bxg5 Be7 $11) (20. h4 $142) 20... Kg8 {[%emt 0:01:40]} 21. g5 {[%emt 0:05:16] White is more active.} (21. Be3 $16) 21... hxg5 $11 {[%emt 0:00:19]} 22. Rxg5 {[%emt 0:00:11]} Kf8 {[%emt 0:05:01]} (22... Be7 $11) 23. Reg1 {[%emt 0:01:11]} (23. Qg2 $14 {stays ahead.}) 23... Rh4 $17 {[%emt 0:02:44]} 24. Re1 {[%emt 0:03:28] [#]} ({Not} 24. Rxg7 $2 Rxe4 25. Nxd6 Rxd6 $19) 24... Be7 $1 {[%emt 0:06:28] Hoping for ...Rd4.} 25. Rg2 {[%emt 0:02:08] [#]} (25. Kg1 $17) 25... Rd4 $1 $19 {[%emt 0:02:25][%cal Rf6e4]} 26. Qg3 {[%emt 0:15:11]} Rhxe4 {[%emt 0:05:36]} (26... Nxe4 $19 27. Qxg7+ Ke8) 27. Rxe4 $11 {[%emt 0:00:32]} Bxe4 {[%emt 0:02:56]} 28. Qxg7+ {[%emt 0:01:59]} Ke8 {[%emt 0:00:24]} 29. Bxe4 {[%emt 0:01:38] Really sharp!} Rxe4 {[%emt 0:00:50]} 30. Qh8+ {[%emt 0:02:21]} (30. b3 $5 {[%cal Rg7h8]}) 30... Kd7 {[%emt 0:00:26]} 31. b3 {[%emt 0:00:42] Black must now prevent Qa8.} Qb7 {[%emt 0:02:38] Prevents Qa8.} 32. Kg1 {[%emt 0:00:35]} Rxc4 {[%emt 0:07:22]} 33. bxc4 {[%emt 0:00:26]} Qf3 {[%emt 0:00:38] Against Qh3. ( -> ...Qd1+)} (33... Qe4 $5 {[%cal Re4c2]}) 34. h3 {[%emt 0:04:08]} e4 $1 {[%emt 0:02:53] The position is equal.} 35. Rf2 {[%emt 0:05:26]} (35. Qa8 $2 Qd1+ 36. Kf2 Qxd2+ 37. Kf1 Qd1+ 38. Kf2 Qxc2+ 39. Kg1 Qc1+ 40. Kf2 Qd2+ 41. Kf1 Qd1+ 42. Kf2 Bd6 43. Qa7+ Bc7 $19) 35... Qg3+ {[%emt 0:00:39]} 36. Rg2 {[%emt 0:00:02]} Qf3 {[%emt 0:00:45] Threatens to win with ...Qd1+.} 37. Rf2 {[%emt 0:00:01]} (37. Qa8 Qd1+ 38. Kf2 Qxd2+ 39. Kf1 Qd1+ 40. Kf2 Qxc2+ 41. Kg1 Qd1+ 42. Kf2 Bd6 43. Qxa6 Qf3+ 44. Ke1 e3 45. Qb5+ Ke7) 37... Qg3+ {[%emt 0:00:26]} 38. Rg2 {[%emt 0:00:02]} Qf3 {[%emt 0:00:24] Weighted Error Value: White=0.27 (precise) /Black=0.19 (very precise)} 1/2-1/2

[Event "41st BAN National Women Chess-ch 2022"]
[Site "Dhaka"]
[Date "2022.11.21"]
[Round "5.2"]
[White "Talukder, Umme Taslima Protiva"]
[Black "Sabiha, Marjana"]
[Result "1-0"]
[ECO "A53"]
[WhiteElo "1780"]
[BlackElo "1267"]
[Annotator "NA RC COMBH"]
[PlyCount "113"]
[EventDate "2022.11.17"]
[EventCountry "BAN"]
[SourceTitle "playchess.com"]
[Source "ChessBase"]
[SourceQuality "1"]
[TimeControl "40/5400+30:1800+30"]

1. d4 {[%emt 0:00:15]} d6 {[%emt 0:00:24]} 2. c4 {[%emt 0:00:25]} c6 {[%emt 0:00:26]} 3. Nc3 {[%emt 0:00:37]} Nf6 {[%emt 0:00:23]} 4. Nf3 {[%emt 0:00:17]} Qa5 {[%emt 0:01:11]} 5. Bd2 {[%emt 0:00:36]} Qc7 {[%emt 0:00:30]} 6. e4 {[%emt 0:00:48]} Bg4 {[%emt 0:01:12]} 7. Be3 {[%emt 0:03:45]} e5 {[%emt 0:01:47]} 8. Be2 {[%emt 0:01:52]} exd4 {[%emt 0:02:47]} 9. Bxd4 {[%emt 0:01:45]} Nbd7 {[%emt 0:00:47]} 10. O-O {[%emt 0:01:47]} c5 {[%emt 0:02:52]} 11. Be3 {[%emt 0:00:36]} a6 {[%emt 0:00:52]} 12. Qd2 {[%emt 0:03:03]} Bxf3 {[%emt 0:00:53]} 13. Bxf3 {[%emt 0:00:04]} Be7 {[%emt 0:01:05]} 14. Rad1 {[%emt 0:01:29]} Ne5 {[%emt 0:01:50]} 15. Be2 {[%emt 0:00:50]} O-O {[%emt 0:01:26]} 16. Bg5 {[%emt 0:03:44]} Rad8 {[%emt 0:02:44]} 17. Bxf6 {[%emt 0:02:46]} Bxf6 {[%emt 0:01:08]} 18. Nd5 {[%emt 0:00:54]} Qd7 {[%emt 0:02:06]} 19. f4 {[%emt 0:02:09]} Ng6 {[%emt 0:07:46]} 20. e5 {[%emt 0:01:06]} Be7 {[%emt 0:03:58]} 21. Qc2 {[%emt 0:14:36]} Rfe8 {[%emt 0:06:54]} 22. Rd2 {[%emt 0:11:40]} Kh8 {[%emt 0:06:46]} 23. Rfd1 {[%emt 0:09:43]} Bf8 {[%emt 0:11:11]} 24. Bd3 {[%emt 0:07:19]} Qc6 {[%emt 0:19:28]} 25. Bxg6 {[%emt 0:04:04]} fxg6 {[%emt 0:01:45]} 26. Nc3 {[%emt 0:02:03]} Re6 {[%emt 0:02:05]} 27. Ne4 {[%emt 0:01:00]} Rde8 {[%emt 0:01:55]} 28. Nxd6 {[%emt 0:01:37]} Bxd6 {[%emt 0:02:23]} 29. Rxd6 {[%emt 0:00:02]} Qc8 {[%emt 0:02:27]} 30. Qd3 {[%emt 0:02:10]} Rxd6 {[%emt 0:03:04]} 31. Qxd6 {[%emt 0:00:01]} Qf5 {[%emt 0:01:01]} 32. Qd7 {[%emt 0:00:51]} Qf8 {[%emt 0:03:27]} 33. g3 {[%emt 0:00:25]} h5 {[%emt 0:02:38]} 34. Qxb7 {[%emt 0:00:36]} Re6 {[%emt 0:01:08]} 35. Qd5 {[%emt 0:01:05]} Qe7 {[%emt 0:04:03]} 36. Qd8+ {[%emt 0:00:03]} Kh7 {[%emt 0:01:02]} 37. Qxe7 {[%emt 0:00:03]} Rxe7 {[%emt 0:01:02]} 38. Rd6 {[%emt 0:00:10]} Rb7 {[%emt 0:00:11]} 39. b3 {[%emt 0:00:13]} Kg8 {[%emt 0:00:34]} 40. Rxa6 {[%emt 0:00:08]} Kf7 {[%emt 0:00:26]} 41. Kf2 {[%emt 0:30:26]} Rc7 {[%emt 0:30:42]} 42. Ke3 {[%emt 0:00:07]} Rc8 {[%emt 0:00:00]} 43. Ke4 {[%emt 0:00:00]} Rd8 {[%emt 0:00:00]} 44. Rd6 {[%emt 0:00:00]} Ra8 {[%emt 0:00:00]} 45. a4 {[%emt 0:00:00]} Rb8 {[%emt 0:00:00]} 46. Rd3 {[%emt 0:00:00]} Rc8 {[%emt 0:00:00]} 47. Rd7+ {[%emt 0:00:00]} Kf8 {[%emt 0:00:00]} 48. Kd5 {[%emt 0:00:00]} Rb8 {[%emt 0:00:00]} 49. Kxc5 {[%emt 0:00:00]} Rxb3 {[%emt 0:00:00]} 50. a5 {[%emt 0:00:00]} Rb8 {[%emt 0:00:00]} 51. a6 {[%emt 0:00:00]} Rc8+ {[%emt 0:00:00]} 52. Kd5 {[%emt 0:00:00]} Kg8 {[%emt 0:00:00]} 53. a7 {[%emt 0:00:00]} Kh7 {[%emt 0:00:00]} 54. e6 {[%emt 0:00:00]} Rf8 {[%emt 0:00:00]} 55. e7 {[%emt 0:00:00]} Re8 {[%emt 0:00:00]} 56. Ke6 {[%emt 0:00:00]} Ra8 {[%emt 0:00:00]} 57. Ke5 {[%emt 0:00:00]} 1-0

[Event "41st BAN National Women Chess-ch 2022"]
[Site "Dhaka"]
[Date "2022.11.21"]
[Round "5.3"]
[White "Nusrat Jahan, Alo"]
[Black "Warsia, Khusbu"]
[Result "0-1"]
[ECO "B32"]
[WhiteElo "1710"]
[BlackElo "1540"]
[Annotator "NA RC COMBH"]
[PlyCount "118"]
[EventDate "2022.11.17"]
[EventCountry "BAN"]
[SourceTitle "playchess.com"]
[Source "ChessBase"]
[SourceQuality "1"]
[TimeControl "40/5400+30:1800+30"]

1. e4 {[%emt 0:00:04]} c5 {[%emt 0:01:09]} 2. Nf3 {[%emt 0:00:16]} Nc6 {[%emt 0:00:14]} 3. d4 {[%emt 0:00:06]} cxd4 {[%emt 0:00:07]} 4. Nxd4 {[%emt 0:00:07]} e5 {[%emt 0:00:01]} 5. Nf3 {[%emt 0:01:03]} Nf6 {[%emt 0:05:02]} 6. Bd3 {[%emt 0:06:17]} Bb4+ {[%emt 0:02:21]} 7. c3 {[%emt 0:01:31]} Be7 {[%emt 0:00:17]} 8. c4 {[%emt 0:04:25]} O-O {[%emt 0:03:05]} 9. O-O {[%emt 0:01:52]} d6 {[%emt 0:02:42]} 10. h3 {[%emt 0:01:25]} Be6 {[%emt 0:01:12]} 11. Nc3 {[%emt 0:02:49]} Nb4 {[%emt 0:07:01]} 12. b3 {[%emt 0:01:35]} Nd7 {[%emt 0:03:41]} 13. Bb1 {[%emt 0:06:50]} Rc8 {[%emt 0:03:07]} 14. Nb5 {[%emt 0:07:12]} Qb6 {[%emt 0:07:05]} 15. a3 {[%emt 0:07:15]} Nc6 {[%emt 0:04:29]} 16. Be3 {[%emt 0:14:29]} Nc5 {[%emt 0:01:00]} 17. b4 {[%emt 0:12:53]} Bxc4 {[%emt 0:00:20]} 18. Nxd6 {[%emt 0:00:09]} Bxd6 {[%emt 0:00:52]} 19. Qxd6 {[%emt 0:00:07]} Bxf1 {[%emt 0:00:13]} 20. Bxc5 {[%emt 0:02:24]} Qb5 {[%emt 0:01:16]} 21. Qd1 {[%emt 0:08:02]} Be2 {[%emt 0:01:08]} 22. Qb3 {[%emt 0:00:32]} Bxf3 {[%emt 0:07:14]} 23. Bd3 {[%emt 0:06:51]} Nd4 {[%emt 0:05:11]} 24. Bxd4 {[%emt 0:00:52]} Qd7 {[%emt 0:00:45]} 25. Bxe5 {[%emt 0:06:14]} Rfd8 {[%emt 0:02:53]} 26. Bc4 {[%emt 0:01:33]} Bxe4 {[%emt 0:00:45]} 27. Re1 {[%emt 0:02:00]} Bg6 {[%emt 0:01:00]} 28. Bf1 {[%emt 0:03:34]} Qd2 {[%emt 0:00:49]} 29. Qe3 {[%emt 0:00:45]} Qxe3 {[%emt 0:00:54]} 30. fxe3 {[%emt 0:00:01]} Rc2 {[%emt 0:01:10]} 31. Be2 {[%emt 0:01:06]} Ra2 {[%emt 0:00:38]} 32. Bf3 {[%emt 0:00:19]} b6 {[%emt 0:01:01]} 33. b5 {[%emt 0:01:22]} Rxa3 {[%emt 0:00:40]} 34. Bc7 {[%emt 0:00:25]} Rc8 {[%emt 0:00:29]} 35. Bd6 {[%emt 0:00:19]} Rb3 {[%emt 0:00:33]} 36. Bg4 {[%emt 0:01:02]} Rd8 {[%emt 0:01:50]} 37. Bc7 {[%emt 0:00:18]} Re8 {[%emt 0:00:43]} 38. Kf2 {[%emt 0:00:45]} Rb2+ {[%emt 0:00:37]} 39. Kg3 {[%emt 0:00:21]} Be4 {[%emt 0:00:41]} 40. Kf4 {[%emt 0:00:42]} Rf2+ {[%emt 0:01:11]} 41. Bf3 {[%emt 0:30:17]} Bxf3 {[%emt 0:33:59]} 42. gxf3 {[%emt 0:00:03]} Ra2 {[%emt 0:00:57]} 43. Rb1 {[%emt 0:00:00]} h6 {[%emt 0:00:00]} 44. h4 {[%emt 0:00:00]} Rh2 {[%emt 0:00:00]} 45. Kg4 {[%emt 0:00:00]} Rc2 {[%emt 0:00:00]} 46. Bf4 {[%emt 0:00:00]} Rc5 {[%emt 0:00:00]} 47. e4 {[%emt 0:00:00]} h5+ {[%emt 0:00:00]} 48. Kg3 {[%emt 0:00:00]} Rd8 {[%emt 0:00:00]} 49. Rb3 {[%emt 0:00:00]} f6 {[%emt 0:00:00]} 50. Be3 {[%emt 0:00:00]} Rc2 {[%emt 0:00:00]} 51. Bf4 {[%emt 0:00:00]} Ra2 {[%emt 0:00:00]} 52. Be3 {[%emt 0:00:00]} Rc8 {[%emt 0:00:00]} 53. Rd3 {[%emt 0:00:00]} Rb2 {[%emt 0:00:00]} 54. Ra3 {[%emt 0:00:00]} Rxb5 {[%emt 0:00:00]} 55. Rxa7 {[%emt 0:00:00]} Rb3 {[%emt 0:00:00]} 56. Bd4 {[%emt 0:00:00]} Rd8 {[%emt 0:00:00]} 57. Ba1 {[%emt 0:00:00]} Rdd3 {[%emt 0:00:00]} 58. e5 {[%emt 0:00:00]} Rxf3+ {[%emt 0:00:00]} 59. Kg2 {[%emt 0:00:00]} Ra3 {[%emt 0:00:00]} 0-1

[Event "41st BAN National Women Chess-ch 2022"]
[Site "Dhaka"]
[Date "2022.11.21"]
[Round "5.4"]
[White "Tasnia Tarannum, Orpa"]
[Black "Kazi Zarin, Tasnim"]
[Result "0-1"]
[ECO "A45"]
[WhiteElo "1662"]
[BlackElo "1860"]
[Annotator "NA RC COMBH"]
[PlyCount "82"]
[EventDate "2022.11.17"]
[EventCountry "BAN"]
[SourceTitle "playchess.com"]
[Source "ChessBase"]
[SourceQuality "1"]
[TimeControl "40/5400+30:1800+30"]

{[%evp 14,82,-16,32767,32767,32767,32767,32767,32767,32767,32767,32767,32767,32767,32767,32767,32767,32767,32767,32767,32767,32767,32767,32767,32767,32767,32767,32767,32767,32767,-107,-105,-67,-78,-71,-96,-81,-87,-64,-76,-47,-75,-77,-71,-64,-76,-36,-111,-114,-152,-159,-168,-162,-178,-166,32767,32767,32767,-145,-300,-325,-1353,-984,-1040,-1170,-2669,-29980,-1512,-29987,-29996,-29997]} 1. d4 {[%emt 0:00:19]} Nf6 {[%emt 0:00:06]} 2. Bf4 {[%emt 0:00:21]} c6 {[%emt 0:00:06]} 3. c3 {[%emt 0:00:24]} d6 {[%emt 0:00:13]} 4. Nd2 {[%emt 0:00:40]} Nbd7 {[%emt 0:01:12]} 5. Ngf3 {[%emt 0:00:18]} Nh5 {[%emt 0:00:13]} 6. Bg3 {[%emt 0:00:45]} Nxg3 {[%emt 0:03:14]} 7. hxg3 {[%emt 0:00:03]} g6 {[%emt 0:02:23]} 8. e3 {[%emt 0:02:59]} Bg7 {[%emt 0:00:58]} 9. Bd3 {[%emt 0:01:15]} Qc7 {[%emt 0:05:38]} 10. Qc2 {[%emt 0:10:25]} e5 {[%emt 0:06:32]} 11. O-O-O {[%emt 0:02:18]} d5 {[%emt 0:05:15]} 12. dxe5 {[%emt 0:03:32]} Nxe5 {[%emt 0:01:07]} 13. Nxe5 {[%emt 0:04:10]} Bxe5 {[%emt 0:00:06]} 14. Nf3 {[%emt 0:00:17]} Bg4 {[%emt 0:01:53]} 15. Be2 {[%emt 0:02:18]} Bf5 {[%emt 0:04:09]} 16. Qd2 {[%emt 0:04:23]} Bg7 {[%emt 0:02:39]} 17. Nd4 {[%emt 0:00:07]} Bd7 {[%emt 0:01:48]} 18. Bd3 {[%emt 0:06:10]} O-O-O {[%emt 0:03:01]} 19. Kb1 {[%emt 0:01:04]} h5 {[%emt 0:02:48]} 20. Rc1 {[%emt 0:01:09]} Kb8 {[%emt 0:02:14]} 21. Nb3 {[%emt 0:04:43]} c5 {[%emt 0:07:52]} 22. Be2 {[%emt 0:05:21]} a5 {[%emt 0:07:13]} 23. Na1 $1 {[%emt 0:07:36]} Qb6 {[%emt 0:04:00]} 24. Bd3 {[%emt 0:16:37]} Be6 {[%emt 0:08:27]} 25. Nc2 {[%emt 0:04:24]} Bf6 {[%emt 0:03:37]} 26. Ka1 {[%emt 0:00:41]} Be7 {[%emt 0:00:54]} 27. Qe1 {[%emt 0:03:37]} Rhe8 {[%emt 0:02:01]} 28. Qf1 {[%emt 0:00:29]} Bf6 {[%emt 0:02:37]} 29. Qd1 {[%emt 0:04:00]} d4 {[%emt 0:02:30]} (29... Bd7 $17) 30. exd4 {[%emt 0:00:12]} (30. cxd4 $11 cxd4 31. e4) 30... cxd4 {[%emt 0:00:05]} 31. c4 {[%emt 0:00:07] [#]} Bxc4 $1 {[%emt 0:02:28]} 32. Ne1 {[%emt 0:03:00]} Bd5 {[%emt 0:02:29]} 33. Qd2 {[%emt 0:00:42]} Rc8 {[%emt 0:04:23]} 34. Nf3 {[%emt 0:01:20]} Ka7 {[%emt 0:01:16]} 35. Qf4 {[%emt 0:02:52]} Bg7 {[%emt 0:04:46]} 36. g4 $2 {[%emt 0:00:40]} (36. Rxc8 $17 {was worth a try.} Rxc8 37. Rc1 Rxc1+ 38. Qxc1) 36... hxg4 {[%emt 0:01:01]} 37. Qxg4 $2 {[%emt 0:00:09] [#]} (37. Ne1) 37... Re2 $3 {[%emt 0:02:30]} 38. Rb1 {[%emt 0:06:17] [#]} Rcc2 $1 {[%emt 0:02:22]} 39. Bxc2 {[%emt 0:02:38]} d3 {[%emt 0:01:26]} 40. Bb3 {[%emt 0:00:33]} Bxb3 {[%emt 0:00:33]} 41. axb3 {[%emt 0:30:07]} Qxb3 {[%emt 0:30:25]} 0-1

[Event "41st BAN National Women Chess-ch 2022"]
[Site "Dhaka"]
[Date "2022.11.21"]
[Round "5.5"]
[White "Noshin, Anjum"]
[Black "Ahmed, Walijah"]
[Result "1-0"]
[ECO "C11"]
[WhiteElo "1907"]
[BlackElo "1977"]
[Annotator "TA"]
[PlyCount "119"]
[EventDate "2022.11.17"]
[EventCountry "BAN"]
[SourceTitle "playchess.com"]
[Source "ChessBase"]
[SourceQuality "1"]
[TimeControl "40/5400+30:1800+30"]

{[%evp 16,119,14,14,41,0,119,107,126,131,248,236,214,239,224,150,171,117,237,293,238,267,268,228,291,285,342,333,341,331,300,177,814,800,794,784,777,0,156,0,764,749,861,818,1011,999,989,980,903,795,1017,975,868,804,784,779,826,827,794,833,767,702,901,877,1340,1312,1207,1216,1121,1102,1045,979,2145,2016,12838,12835,12836,12836,12836,12835,12836,12836,12837,12837,12841,12841,12841,12839,6025,0,12841,12842,12841,12842,12842,12843,12843,12843,12846,12847,12848,12848,12849,12848,12849,12849]} 1. e4 {[%emt 0:00:04]} e6 {[%emt 0:01:19]} 2. d4 {[%emt 0:00:08]} d5 {[%emt 0:00:05]} 3. Nc3 {[%emt 0:00:04]} Nf6 {[%emt 0:00:05]} 4. e5 {[%emt 0:00:05]} Nfd7 {[%emt 0:00:04]} 5. f4 {[%emt 0:00:06][%cal Bf2f4,Bf4f5][%mdl 32]} c5 {[%emt 0:00:06]} 6. Nf3 {[%emt 0:00:08]} Nc6 {[%emt 1:31:51]} 7. Be3 {[%emt 0:00:07]} a6 {[%emt 0:00:00]} 8. Qd2 {[%emt 0:00:13]} b5 {[%emt 0:00:00]} 9. a3 {[%emt 0:00:06]} g5 {[%emt 0:00:00] 9...Qa5 gains popularity. C11: French: Classical System: 4 e5 and 4 Bg5 dxe4.} 10. f5 {[%emt 0:07:00]} cxd4 {[%emt 0:00:00]} (10... g4 $1 $11 {keeps the balance.} 11. fxe6 fxe6) 11. Nxd4 $16 {[%emt 0:02:20] [#]} (11. Bxd4 $2 g4 12. Ng1 (12. fxe6 $2 fxe6 13. Ng1 h5 $19) 12... Ndxe5 13. fxe6 fxe6 $19) 11... Nxd4 $146 {[%emt 0:02:30] White is better.} (11... Ndxe5 12. fxe6 Bxe6 13. Nxc6 Nxc6 14. Bxg5 Qa5 15. Rd1 d4 16. Ne4 Qxd2+ 17. Rxd2 f5) ({Predecessor:} 11... Ndxe5 12. fxe6 Bxe6 13. Nxc6 Nxc6 14. Bxg5 Qa5 15. Rd1 d4 16. Ne4 Qxd2+ 17. Rxd2 f5 {0-1 (32) Budszuhn,T (1658)-Kahleys,K (1986) Dortmund 2009}) 12. Bxd4 {[%emt 0:01:49] Strongly threatening fxe6.} Bb7 {[%emt 0:00:00]} (12... Bc5 $16 {was worth a try.}) 13. Be2 $18 {[%emt 0:09:55] Black must now prevent fxe6.} h5 {[%emt 0:00:00]} 14. fxe6 {[%emt 0:00:40]} fxe6 {[%emt 0:00:00]} 15. Qd3 {[%emt 0:04:43]} Qe7 {[%emt 0:00:00]} 16. Rf1 {[%emt 0:04:25]} (16. O-O $18 {[%cal Oe2h5] Hoping for Bxh5+!} Qh7 17. Nxb5 $1 Qxd3 18. Nc7+ Ke7 19. Bxd3) 16... Qg7 {[%emt 0:00:00] [#]} (16... O-O-O $16) 17. Nxb5 $1 {[%emt 0:20:41][%mdl 512]} axb5 {[%emt 0:00:00]} 18. Qxb5 {[%emt 0:00:06]} Rb8 {[%emt 0:00:00]} 19. Rf6 {[%emt 0:01:40]} Be7 {[%emt 0:00:00] [#] And now ...Ba8 would win.} 20. Ba7 $1 {[%emt 0:12:29]} (20. Rxe6 Rh6 21. Rxh6 Qxh6) (20. Rxe6 Rh6 21. Rxh6 Qxh6 $11) 20... Bxf6 {[%emt 0:00:00]} 21. exf6 {[%emt 0:03:30]} ({And not} 21. Bxb8 Bxe5 22. Bxe5 Qxe5 $11) 21... Qxf6 {[%emt 0:00:00] Threatens to win with ...Rc8.} 22. Bxb8 {[%emt 0:00:06] This pair of bishops is nice.} O-O {[%emt 0:00:00]} 23. Qxd7 {[%emt 0:03:36] Active counter play!} (23. Ba7 Bc8 24. O-O-O) (23. Ba7 $142 Bc8 24. O-O-O (24. Bxh5 g4 $15)) 23... Qf2+ $2 {[%emt 0:00:00]} (23... Rxb8 24. Qc7 Rf8) (23... Rxb8 24. Qc7 (24. Bxh5 Ba6 $15) 24... Rf8) 24. Kd2 {[%emt 0:01:47][%cal Be1d2,Bd2c3,Bc3b3,Bb3a4,Ba4b4][%mdl 32]} Qd4+ {[%emt 0:00:00]} 25. Bd3 {[%emt 0:01:01][%csl Gd3][%cal Rd7h7]} Qf2+ {[%emt 0:00:00]} 26. Be2 $2 {[%emt 0:00:51]} (26. Kc3 $18 {[%csl Gd3][%cal Rd7h7]} Rc8+ 27. Kb3) 26... Qd4+ $16 {[%emt 0:00:00]} 27. Bd3 {[%emt 0:00:04][%csl Gd3][%cal Rd7h7]} Qf2+ {[%emt 0:00:00]} 28. Kc3 {[%emt 0:02:31][%csl Gd3][%cal Rd7h7]} d4+ {[%emt 0:00:19]} 29. Kb3 {[%emt 0:02:06][%csl Gd3][%cal Rd7h7]} Bd5+ {[%emt 0:01:36]} 30. Ka4 {[%emt 0:00:09][%csl Gd3][%cal Rd7h7]} Qf7 {[%emt 0:05:19] Against Qh7+} 31. Qxf7+ {[%emt 0:00:10]} Rxf7 {[%emt 0:00:03]} 32. Be5 {[%emt 0:01:56]} Bxg2 {[%emt 0:00:46]} 33. Rg1 {[%emt 0:00:18]} Bc6+ {[%emt 0:00:58]} 34. Kb4 {[%emt 0:00:32]} g4 {[%emt 0:00:12]} 35. Bxd4 {[%emt 0:02:01]} Bf3 {[%emt 0:00:52]} 36. Bg6 {[%emt 0:02:54]} Rf4 {[%emt 0:01:21]} 37. Kc3 {[%emt 0:00:15]} h4 {[%emt 0:00:17]} 38. Be5 {[%emt 0:01:26]} Rf8 {[%emt 0:00:22]} 39. Bh5 {[%emt 0:00:36]} g3 {[%emt 0:01:23]} 40. Bxf3 {[%emt 0:00:17]} Rxf3+ $18 {[%emt 0:00:05][%mdl 4096] Endgame KRB-KR} 41. Kd4 {[%emt 0:30:20]} Rf2 {[%emt 0:01:16]} 42. hxg3 {[%emt 0:00:00]} h3 {[%emt 0:00:11]} 43. Rh1 {[%emt 0:00:00]} Rxc2 {[%emt 0:00:15]} 44. Rxh3 {[%emt 0:00:00]} Rxb2 {[%emt 0:00:06]} 45. Bd6 {[%emt 0:00:00]} Kf7 {[%emt 0:00:56]} 46. Kc3 {[%emt 0:00:00]} Ra2 {[%emt 0:00:21]} 47. Kb3 {[%emt 0:00:00]} Rd2 {[%emt 0:00:11]} 48. Bb4 {[%emt 0:00:00]} Rd3+ {[%emt 0:00:29]} 49. Kc4 {[%emt 0:00:00]} Re3 {[%emt 0:00:07]} 50. a4 {[%emt 0:00:00][%cal Ba3a4,Ba4a5,Ba5a6,Ba6a7][%mdl 32]} Re4+ {[%emt 0:00:18]} 51. Kb3 {[%emt 0:00:00]} Re3+ {[%emt 0:00:10]} 52. Kc4 {[%emt 0:00:00]} Re4+ {[%emt 0:00:10]} 53. Kb5 {[%emt 0:00:00] White is clearly winning.} Re5+ {[%emt 0:00:30]} 54. Bc5 {[%emt 0:00:00]} (54. Kb6 Re4 55. Rh4) 54... Re2 {[%emt 0:00:11]} 55. a5 {[%emt 0:00:00]} Rb2+ {[%emt 0:00:21]} 56. Bb4 {[%emt 0:00:00]} e5 {[%emt 0:00:23]} 57. a6 {[%emt 0:00:00]} e4 {[%emt 0:00:03]} 58. a7 {[%emt 0:00:00]} Ra2 {[%emt 0:00:05]} 59. Ba5 {[%emt 0:00:00]} Rb2+ {[%emt 0:00:07]} 60. Ka6 {[%emt 0:00:00] Weighted Error Value: White=0.73/Black=0.49} 1-0

[Event "41st BAN National Women Chess-ch 2022"]
[Site "Dhaka"]
[Date "2022.11.21"]
[Round "5.6"]
[White "Jannatul, Ferdous"]
[Black "Hamid, Rani"]
[Result "0-1"]
[ECO "B41"]
[WhiteElo "1861"]
[BlackElo "1760"]
[Annotator "NA RC COMBH"]
[PlyCount "72"]
[EventDate "2022.11.17"]
[EventCountry "BAN"]
[SourceTitle "playchess.com"]
[Source "ChessBase"]
[SourceQuality "1"]
[TimeControl "40/5400+30:1800+30"]

1. e4 {[%emt 0:00:05]} c5 {[%emt 0:01:09]} 2. Nf3 {[%emt 0:00:12]} e6 {[%emt 0:00:19]} 3. d4 {[%emt 0:00:12]} cxd4 {[%emt 0:00:06]} 4. Nxd4 {[%emt 0:00:03]} a6 {[%emt 0:00:07]} 5. c4 {[%emt 0:00:29]} Nf6 {[%emt 0:00:15]} 6. Nc3 {[%emt 0:00:03]} d6 {[%emt 0:00:10]} 7. a3 {[%emt 0:00:41]} Be7 {[%emt 0:00:33]} 8. Be3 {[%emt 0:00:16]} O-O {[%emt 0:00:47]} 9. Be2 {[%emt 0:00:22]} b6 {[%emt 0:00:52]} 10. O-O {[%emt 0:00:40]} Bb7 {[%emt 0:00:07]} 11. f3 {[%emt 0:00:05]} Nbd7 {[%emt 0:01:25]} 12. Rc1 {[%emt 0:02:09]} Rc8 {[%emt 0:01:12]} 13. b4 {[%emt 0:05:15]} Ne5 {[%emt 0:04:25]} 14. Na4 {[%emt 0:01:01]} Nfd7 {[%emt 0:00:10]} 15. Nb3 {[%emt 0:10:57]} Nxc4 {[%emt 0:05:12]} 16. Rxc4 {[%emt 0:08:12]} Rxc4 {[%emt 0:00:28]} 17. Bxc4 {[%emt 0:00:35]} b5 {[%emt 0:00:07]} 18. Bxb5 {[%emt 0:02:37]} axb5 {[%emt 0:00:35]} 19. Nc3 {[%emt 0:02:01]} Ba6 {[%emt 0:06:39]} 20. Nd4 {[%emt 0:01:36]} Ne5 {[%emt 0:00:32]} 21. Ndxb5 {[%emt 0:02:26]} Nc4 {[%emt 0:02:02]} 22. Re1 {[%emt 0:05:21]} Nxe3 {[%emt 0:03:59]} 23. Rxe3 {[%emt 0:01:02]} Bxb5 {[%emt 0:00:07]} 24. Nxb5 {[%emt 0:00:17]} Qb6 {[%emt 0:00:06]} 25. Qd3 {[%emt 0:14:53]} Bg5 {[%emt 0:00:50]} 26. Nd4 {[%emt 0:06:03]} Bxe3+ {[%emt 0:02:47]} 27. Qxe3 {[%emt 0:00:09]} Rc8 {[%emt 0:01:56]} 28. Kf1 {[%emt 0:01:49]} Rc4 {[%emt 0:04:03]} 29. Nc2 {[%emt 0:04:10]} Qc7 {[%emt 0:02:51]} 30. Nd4 {[%emt 0:02:09]} Rc3 {[%emt 0:01:37]} 31. Qd2 {[%emt 0:10:01]} Qc4+ {[%emt 0:03:47]} 32. Ne2 {[%emt 0:01:40]} Rc2 {[%emt 0:04:02]} 33. Qd1 {[%emt 0:00:07]} d5 {[%emt 0:02:35]} 34. b5 {[%emt 0:07:36]} d4 {[%emt 0:00:07]} 35. b6 {[%emt 0:01:05]} d3 {[%emt 0:00:08]} 36. Nf4 {[%emt 0:10:47]} Rc1 {[%emt 0:02:55]} 0-1